bitfinex/quotes_BTCUSD_20230904
["timestamp","ask_amount","ask_price","bid_price","bid_amount"]
[1693787887903,0.004002,25928.0,25927.0,1.37109585]
[1693787888469,0.004002,25928.0,25927.0,1.37097585]
[1693787888651,0.004002,25928.0,25927.0,1.37091585]
[1693787888858,0.004002,25928.0,25927.0,1.37073585]
[1693787889092,0.004002,25928.0,25927.0,1.37061585]
[1693787889265,0.004002,25928.0,25927.0,1.37049585]
[1693787889471,0.004002,25928.0,25927.0,1.37037585]
[1693787889669,0.004002,25928.0,25927.0,1.37133585]
[1693787889870,0.004002,25928.0,25927.0,1.37157585]
[1693787890072,0.004002,25928.0,25927.0,1.37103585]
[1693787890272,0.004002,25928.0,25927.0,1.37073585]
[1693787890517,0.004002,25928.0,25927.0,1.37019585]
[1693787890726,0.004002,25928.0,25927.0,1.37061585]
[1693787890920,0.004002,25928.0,25927.0,1.37055585]
[1693787891153,0.004002,25928.0,25927.0,1.36581585]
[1693787891429,0.004002,25928.0,25927.0,1.36515585]
[1693787891629,0.004002,25928.0,25927.0,1.36779585]
[1693787891830,0.004002,25928.0,25927.0,1.36503585]
[1693787892123,0.004002,25928.0,25927.0,1.36467585]
[1693787892327,0.004002,25928.0,25927.0,1.36455585]
[1693787892736,0.004002,25928.0,25927.0,1.29963585]
[1693787897449,0.004002,25928.0,25927.0,1.06820649]
[1693787898658,0.004002,25928.0,25927.0,1.29963585]
[1693787899063,0.004002,25928.0,25927.0,1.36797585]
[1693787899265,0.004002,25928.0,25927.0,1.36929585]
[1693787899608,0.004002,25928.0,25927.0,1.36923585]
[1693787899840,0.004002,25928.0,25927.0,1.36905585]
[1693787900010,0.004002,25928.0,25927.0,1.36899585]
[1693787900213,0.004002,25928.0,25927.0,1.36803585]
[1693787900418,0.004002,25928.0,25927.0,1.36833585]
[1693787900571,0.004002,25928.0,25927.0,1.36755585]
[1693787900777,0.004002,25928.0,25927.0,1.36749585]
[1693787900977,0.004002,25928.0,25927.0,1.36743585]
[1693787901245,0.004002,25928.0,25927.0,1.36737585]
[1693787901441,0.004002,25928.0,25927.0,1.36779585]
[1693787901870,0.004002,25928.0,25927.0,1.36761585]
[1693787902192,0.004002,25928.0,25927.0,1.36755585]
[1693787902403,0.004002,25928.0,25927.0,1.36779585]
[1693787902582,0.004002,25928.0,25927.0,1.36773585]
[1693787902736,0.004002,25928.0,25927.0,1.36767585]
[1693787902937,0.004002,25928.0,25927.0,1.28471585]
[1693787903158,0.004002,25928.0,25927.0,1.28465585]
[1693787903366,0.004002,25928.0,25927.0,1.28453585]
[1693787903526,0.004002,25928.0,25927.0,1.28483585]
[1693787903727,0.004002,25928.0,25927.0,1.28513585]
[1693787904028,0.004002,25928.0,25927.0,1.28507585]
[1693787904231,0.004002,25928.0,25927.0,1.98501585]
[1693787904441,0.004002,25928.0,25927.0,1.98495585]
[1693787904907,0.004002,25928.0,25927.0,1.98477585]
[1693787905304,0.004002,25928.0,25927.0,1.98465585]
[1693787905689,0.004002,25928.0,25927.0,1.98459585]
[1693787905881,0.004002,25928.0,25927.0,1.98453585]
[1693787906285,0.004002,25928.0,25927.0,1.98447585]
[1693787906457,0.004002,25928.0,25927.0,1.98429585]
[1693787906662,0.004002,25928.0,25927.0,1.98405585]
[1693787906863,0.004002,25928.0,25927.0,1.98399585]
[1693787907107,0.004002,25928.0,25927.0,1.98393585]
[1693787907551,0.004002,25928.0,25927.0,1.98405585]
[1693787907775,0.004002,25928.0,25927.0,1.98399585]
[1693787907955,0.004002,25928.0,25927.0,1.98393585]
[1693787908123,0.004002,25928.0,25927.0,1.98387585]
[1693787908651,0.004002,25928.0,25927.0,1.98369585]
[1693787908884,0.04187803,25928.0,25927.0,1.98399585]
[1693787909040,0.04187803,25928.0,25927.0,1.98447585]
[1693787909237,0.04187803,25928.0,25927.0,1.98645585]
[1693787909443,0.04187803,25928.0,25927.0,1.98663585]
[1693787909620,0.04187803,25928.0,25927.0,1.98627585]
[1693787909845,0.04187803,25928.0,25927.0,1.98423585]
[1693787910036,0.04187803,25928.0,25927.0,1.98429585]
[1693787910232,0.04187803,25928.0,25927.0,1.98423585]
[1693787910480,0.04187803,25928.0,25927.0,1.98435585]
[1693787910655,0.04187803,25928.0,25927.0,1.98417585]
[1693787911035,0.04187803,25928.0,25927.0,1.98411585]
[1693787911208,0.04187803,25928.0,25927.0,1.98405585]
[1693787911446,0.04187803,25928.0,25927.0,1.98429585]
[1693787911621,0.04187803,25928.0,25927.0,1.98417585]
[1693787911827,0.04187803,25928.0,25927.0,1.98609585]
[1693787912025,0.04187803,25928.0,25927.0,1.98711585]
[1693787912240,0.04187803,25928.0,25927.0,1.98663585]
[1693787912406,0.04187803,25928.0,25927.0,1.98657585]
[1693787912744,0.04187803,25928.0,25927.0,1.98633585]
[1693787912860,0.04187803,25928.0,25927.0,1.98861585]
[1693787913063,0.04187803,25928.0,25927.0,1.98915585]
[1693787913274,0.04187803,25928.0,25927.0,1.98879585]
[1693787913511,0.04187803,25928.0,25927.0,1.99449585]
[1693787913699,0.04187803,25928.0,25927.0,1.99491585]
[1693787913895,0.04187803,25928.0,25927.0,1.99473585]
[1693787914123,0.04187803,25928.0,25927.0,1.99557585]
[1693787914322,0.04187803,25928.0,25927.0,1.99599585]
[1693787914525,0.04187803,25928.0,25927.0,1.99683585]
[1693787914728,0.004002,25928.0,25927.0,1.68375867]
[1693787915000,0.004002,25928.0,25927.0,1.68069867]
[1693787915169,0.004002,25928.0,25927.0,1.67805867]
[1693787915374,0.004002,25928.0,25927.0,1.67793867]
[1693787915580,0.03787603,25930.0,25928.0,0.057]
[1693787915800,0.03787603,25930.0,25929.0,0.79391369]
[1693787915932,0.03787603,25930.0,25929.0,1.08363558]
[1693787916558,0.04087603,25930.0,25929.0,1.08363558]
[1693787917010,0.04387603,25930.0,25929.0,1.12063558]
[1693787917785,0.04387603,25930.0,25929.0,0.93553449]
[1693787917990,0.04087603,25930.0,25929.0,0.93553449]
[1693787918189,0.04387603,25930.0,25929.0,0.97253449]
[1693787920473,0.006,25930.0,25929.0,1.05965449]
[1693787920694,0.006,25930.0,25929.0,2.30036613]
[1693787920893,0.006,25930.0,25929.0,2.07060976]
[1693787921114,0.006,25930.0,25929.0,2.07072976]
[1693787921234,0.006,25930.0,25929.0,2.07060976]
[1693787921435,0.006,25930.0,25929.0,2.09568049]
[1693787921645,0.006,25930.0,25929.0,2.09748049]
[1693787921848,0.006,25930.0,25929.0,2.09658049]
[1693787922069,0.006,25930.0,25929.0,2.09478049]
[1693787922298,0.03787603,25931.0,25930.0,0.057]
[1693787922499,0.03787603,25931.0,25930.0,0.9752148]
[1693787922695,0.03787603,25931.0,25930.0,1.06771322]
[1693787922896,0.03787603,25931.0,25930.0,1.15099322]
[1693787923096,0.03787603,25931.0,25930.0,1.15093322]
[1693787923300,0.03787603,25931.0,25930.0,1.15081294]
[1693787923540,0.03787603,25931.0,25930.0,1.15015295]
[1693787923714,0.03787603,25931.0,25930.0,1.15033295]
[1693787923957,0.03787603,25931.0,25930.0,1.15247971]
[1693787924159,0.03787603,25931.0,25930.0,1.18941971]
[1693787924362,0.03787603,25931.0,25930.0,1.18929971]
[1693787924566,0.03787603,25931.0,25930.0,1.18977971]
[1693787924772,0.03787603,25931.0,25930.0,1.18809971]
[1693787924997,0.03787603,25931.0,25930.0,0.87856872]
[1693787925169,0.03887603,25931.0,25930.0,0.91550872]
[1693787925373,0.03887603,25931.0,25930.0,0.91634872]
[1693787925576,0.03887603,25931.0,25930.0,0.91622872]
[1693787925792,0.03887603,25931.0,25930.0,0.91616872]
[1693787926015,0.03887603,25931.0,25930.0,0.91610872]
[1693787926244,0.03887603,25931.0,25930.0,0.91778872]
[1693787926461,0.03887603,25931.0,25930.0,0.91802872]
[1693787926663,0.03887603,25931.0,25930.0,0.91796872]
[1693787926867,0.03887603,25931.0,25930.0,0.91754872]
[1693787927075,0.03887603,25931.0,25930.0,0.91748872]
[1693787927273,0.03887603,25931.0,25930.0,1.61742872]
[1693787927489,0.03887603,25931.0,25930.0,1.80939872]
[1693787927696,0.03887603,25931.0,25930.0,1.81875872]
[1693787927915,0.001,25931.0,25930.0,1.81917872]
[1693787928114,0.001,25931.0,25930.0,2.47823194]
[1693787928323,0.001,25931.0,25930.0,2.24827353]
[1693787928537,0.001,25931.0,25930.0,2.45843325]
[1693787928755,0.001,25931.0,25930.0,2.44787325]
[1693787928949,0.03787603,25934.0,25933.0,0.05692676]
[1693787929153,0.03787603,25934.0,25933.0,0.75800581]
[1693787929359,0.03787603,25934.0,25933.0,0.84728581]
[1693787929558,0.03787603,25934.0,25933.0,0.84188581]
[1693787929692,0.03787603,25934.0,25933.0,0.70077045]
[1693787929946,0.03787603,25934.0,25933.0,1.40089045]
[1693787930147,0.03787603,25934.0,25933.0,1.40107045]
[1693787930394,0.03787603,25934.0,25933.0,1.43819045]
[1693787930594,0.03787603,25934.0,25933.0,1.43837045]
[1693787930800,0.03787603,25934.0,25933.0,1.43771045]
[1693787931000,0.03787603,25934.0,25933.0,1.47171045]
[1693787931176,0.03787603,25934.0,25933.0,1.47189045]
[1693787931377,0.03787603,25934.0,25933.0,0.92623745]
[1693787931724,0.03787603,25934.0,25933.0,0.92653745]
[1693787931857,0.03787603,25934.0,25933.0,0.83434054]
[1693787932058,0.03787603,25934.0,25933.0,0.83464054]
[1693787932261,0.03787603,25934.0,25933.0,0.83476054]
[1693787932469,0.03787603,25934.0,25933.0,0.83470054]
[1693787932679,0.03787603,25934.0,25933.0,0.83416054]
[1693787932888,0.03787603,25934.0,25933.0,0.83386054]
[1693787933096,0.03787603,25934.0,25933.0,0.83350054]
[1693787933293,0.03787603,25934.0,25933.0,0.83386054]
[1693787933540,0.03787603,25934.0,25933.0,0.83464054]
[1693787933765,0.03787603,25934.0,25933.0,0.83692054]
[1693787933950,0.03787603,25934.0,25933.0,0.83704054]
[1693787934173,0.03787603,25934.0,25933.0,0.83728054]
[1693787934380,0.03787603,25934.0,25933.0,0.83752054]
[1693787934582,0.03787603,25934.0,25933.0,0.83776054]
[1693787934734,0.03787603,25934.0,25933.0,0.83788054]
[1693787934921,0.03787603,25934.0,25933.0,0.83800054]
[1693787935136,0.03787603,25934.0,25933.0,0.83818054]
[1693787935395,0.03787603,25934.0,25933.0,0.83860054]
[1693787935570,0.03787603,25934.0,25933.0,0.83770054]
[1693787935766,0.03787603,25934.0,25933.0,0.83788054]
[1693787935969,0.03787603,25934.0,25933.0,0.83794054]
[1693787936150,0.03787603,25934.0,25933.0,0.83818054]
[1693787936368,0.03787603,25934.0,25933.0,0.83836054]
[1693787936781,0.03787603,25934.0,25933.0,0.83854054]
[1693787937296,0.03787603,25934.0,25933.0,0.83890054]
[1693787937535,0.03787603,25934.0,25933.0,0.83938054]
[1693787937730,0.03787603,25934.0,25933.0,0.83950054]
[1693787937928,0.03787603,25934.0,25933.0,0.83962054]
[1693787938256,0.03787603,25934.0,25933.0,0.83968054]
[1693787938457,0.03787603,25934.0,25933.0,0.83986054]
[1693787938651,0.03787603,25934.0,25933.0,0.84004054]
[1693787938860,0.03787603,25934.0,25933.0,0.84034054]
[1693787939037,0.03787603,25934.0,25933.0,0.84046054]
[1693787939247,0.03787603,25934.0,25933.0,0.84064054]
[1693787939584,0.03787603,25934.0,25933.0,0.84028054]
[1693787939787,0.03787603,25934.0,25933.0,0.84328054]
[1693787940024,0.03787603,25934.0,25933.0,0.84346054]
[1693787940238,0.03787603,25934.0,25933.0,0.84376054]
[1693787940443,0.03787603,25934.0,25933.0,0.84172054]
[1693787940639,0.03787603,25934.0,25933.0,0.84160054]
[1693787940843,0.03787603,25934.0,25933.0,0.84148054]
[1693787941043,0.03787603,25934.0,25933.0,1.54160054]
[1693787941218,0.03787603,25934.0,25933.0,1.54172054]
[1693787941424,0.03787603,25934.0,25933.0,1.54082054]
[1693787941606,0.04653459,25934.0,25933.0,1.54250054]
[1693787941804,0.04653459,25934.0,25933.0,1.54274054]
[1693787942171,0.04653459,25934.0,25933.0,1.54280054]
[1693787942351,0.03787603,25934.0,25933.0,1.54310054]
[1693787942604,0.03787603,25934.0,25933.0,1.45514054]
[1693787942807,0.03787603,25934.0,25933.0,0.67224054]
[1693787943310,0.03787603,25934.0,25933.0,0.73920054]
[1693787943521,0.03787603,25934.0,25933.0,0.73938054]
[1693787943727,0.03787603,25934.0,25933.0,0.73956054]
[1693787943902,0.03787603,25934.0,25933.0,0.73974054]
[1693787944103,0.03787603,25934.0,25933.0,0.73842054]
[1693787944310,0.03787603,25934.0,25933.0,0.67224054]
[1693787944509,0.03787603,25934.0,25933.0,0.73704054]
[1693787944722,0.03787603,25934.0,25933.0,0.73722054]
[1693787944920,0.03787603,25934.0,25933.0,0.73740054]
[1693787945108,0.03787603,25934.0,25933.0,0.73752054]
[1693787945422,0.03787603,25934.0,25933.0,0.67224054]
[1693787948786,0.03787603,25934.0,25933.0,0.73710054]
[1693787949086,0.03787603,25934.0,25933.0,0.73734054]
[1693787949288,0.03787603,25934.0,25933.0,0.75714054]
[1693787949488,0.03787603,25934.0,25933.0,0.75738054]
[1693787949687,0.03787603,25934.0,25933.0,0.75804054]
[1693787949998,0.03787603,25934.0,25933.0,0.75828054]
[1693787950185,0.03787603,25934.0,25933.0,0.75834054]
[1693787950379,0.03787603,25934.0,25933.0,0.75888054]
[1693787950583,0.03787603,25934.0,25933.0,0.75912054]
[1693787950787,0.03787603,25934.0,25933.0,0.75756054]
[1693787951130,0.03787603,25934.0,25933.0,0.75750054]
[1693787951550,0.03787603,25934.0,25933.0,0.75732054]
[1693787951793,0.03787603,25934.0,25933.0,0.75744054]
[1693787952002,0.03787603,25934.0,25933.0,0.75534054]
[1693787952197,0.03787603,25934.0,25933.0,0.75516054]
[1693787952699,0.03787603,25934.0,25933.0,0.75840054]
[1693787952899,0.03787603,25934.0,25933.0,0.75792054]
[1693787953101,0.03787603,25934.0,25933.0,0.75780054]
[1693787953313,0.03787603,25934.0,25933.0,0.75792054]
[1693787953512,0.03787603,25934.0,25933.0,0.76140054]
[1693787953714,0.03787603,25934.0,25933.0,0.75942054]
[1693787954312,0.03787603,25934.0,25933.0,0.75936054]
[1693787954527,0.03787603,25934.0,25933.0,0.75924054]
[1693787954734,0.03787603,25934.0,25933.0,0.75918054]
[1693787954936,0.03787603,25934.0,25933.0,0.75906054]
[1693787955362,0.03787603,25934.0,25933.0,0.75936054]
[1693787955585,0.03787603,25934.0,25933.0,0.75882054]
[1693787955788,0.03787603,25934.0,25933.0,0.75840054]
[1693787956190,0.03787603,25934.0,25933.0,0.75834054]
[1693787956392,0.03787603,25934.0,25933.0,0.75864054]
[1693787956634,0.03787603,25934.0,25933.0,0.76518054]
[1693787956839,0.03787603,25934.0,25933.0,0.76470054]
[1693787957042,0.03787603,25934.0,25933.0,0.76320054]
[1693787957220,0.03787603,25934.0,25933.0,0.76182054]
[1693787957423,0.03787603,25934.0,25933.0,0.76152054]
[1693787957633,0.03787603,25934.0,25933.0,0.76146054]
[1693787958046,0.03787603,25934.0,25933.0,0.76140054]
[1693787958464,0.03787603,25934.0,25933.0,0.76266054]
[1693787958877,0.03787603,25934.0,25933.0,0.76182054]
[1693787959081,0.03787603,25934.0,25933.0,0.76074054]
[1693787959284,0.03787603,25934.0,25933.0,0.76080054]
[1693787959497,0.03787603,25934.0,25933.0,0.75714054]
[1693787959699,0.03787603,25934.0,25933.0,0.84946215]
[1693787959900,0.03787603,25934.0,25933.0,0.85264215]
[1693787960230,0.03787603,25934.0,25933.0,0.85300215]
[1693787960428,0.03787603,25934.0,25933.0,0.85348215]
[1693787960628,0.03787603,25934.0,25933.0,0.85354215]
[1693787960836,0.03787603,25934.0,25933.0,0.95228215]
[1693787961041,0.03787603,25934.0,25933.0,0.95528215]
[1693787961276,0.03787603,25934.0,25933.0,0.95396215]
[1693787961504,0.03787603,25934.0,25933.0,0.95282215]
[1693787961683,0.03787603,25934.0,25933.0,0.95456215]
[1693787961840,0.03787603,25934.0,25933.0,1.65480215]
[1693787962041,0.03787603,25934.0,25933.0,1.65492215]
[1693787962246,0.03787603,25934.0,25933.0,1.65546215]
[1693787962447,0.03787603,25934.0,25933.0,1.65528215]
[1693787962696,0.03787603,25934.0,25933.0,1.65174215]
[1693787962903,0.03787603,25934.0,25933.0,1.65114215]
[1693787963103,0.03787603,25934.0,25933.0,1.64586215]
[1693787963329,0.03787603,25934.0,25933.0,1.64574215]
[1693787963510,0.03787603,25934.0,25933.0,1.64334215]
[1693787963707,0.03787603,25934.0,25933.0,1.64316215]
[1693787963948,0.03787603,25934.0,25933.0,0.92138215]
[1693787964126,0.03787603,25934.0,25933.0,0.92144215]
[1693787964355,0.03787603,25934.0,25933.0,0.92156215]
[1693787964563,0.03787603,25934.0,25933.0,0.92264215]
[1693787964788,0.03787603,25934.0,25933.0,0.92258215]
[1693787964991,0.03787603,25934.0,25933.0,0.92264215]
[1693787965171,0.03787603,25934.0,25933.0,0.92270215]
[1693787965573,0.03787603,25934.0,25933.0,0.92276215]
[1693787965749,0.03787603,25934.0,25933.0,0.92282051]
[1693787965925,0.03787603,25934.0,25933.0,0.92216051]
[1693787966129,0.03787603,25934.0,25933.0,0.92150051]
[1693787966330,0.03787603,25934.0,25933.0,0.92162051]
[1693787966542,0.03787603,25934.0,25933.0,0.92300051]
[1693787966732,0.03787603,25934.0,25933.0,0.92306051]
[1693787966958,0.03787603,25934.0,25933.0,0.92540051]
[1693787967166,0.03787603,25934.0,25933.0,0.92426051]
[1693787967361,0.03787603,25934.0,25933.0,0.92324051]
[1693787967573,0.03787603,25934.0,25933.0,0.92354051]
[1693787967863,0.03787603,25934.0,25933.0,0.92498051]
[1693787968053,0.03787603,25934.0,25933.0,1.06232047]
[1693787968233,0.03787603,25934.0,25933.0,1.06238047]
[1693787968450,0.03787603,25934.0,25933.0,1.06226047]
[1693787968614,0.03787603,25934.0,25933.0,1.06232047]
[1693787968830,0.03787603,25934.0,25933.0,1.37408325]
[1693787969228,0.03787603,25934.0,25933.0,1.37072325]
[1693787969432,0.03787603,25934.0,25933.0,1.36904325]
[1693787969639,0.03787603,25934.0,25933.0,1.36916325]
[1693787969981,0.03787603,25934.0,25933.0,1.27684328]
[1693787970183,0.03787603,25934.0,25933.0,1.27438328]
[1693787970367,0.03787603,25934.0,25933.0,1.27642328]
[1693787970570,0.03787603,25934.0,25933.0,1.27990328]
[1693787970765,0.03787603,25934.0,25933.0,1.27870328]
[1693787970975,0.03787603,25934.0,25933.0,1.27876328]
[1693787971270,0.03787603,25934.0,25933.0,1.27780328]
[1693787971662,0.03787603,25934.0,25933.0,1.27792328]
[1693787971854,0.03787603,25934.0,25933.0,1.27768328]
[1693787972028,0.03787603,25934.0,25933.0,1.27774328]
[1693787972211,0.03787603,25934.0,25933.0,1.27780328]
[1693787972413,0.03787603,25934.0,25933.0,1.28230328]
[1693787972700,0.03787603,25934.0,25933.0,1.28236328]
[1693787972878,0.03787603,25934.0,25933.0,1.46724323]
[1693787973086,0.03787603,25934.0,25933.0,1.38488323]
[1693787973517,0.03787603,25934.0,25933.0,2.19064323]
[1693787973720,0.03787603,25934.0,25933.0,2.19208323]
[1693787973907,0.03787603,25934.0,25933.0,2.05162327]
[1693787974053,0.03787603,25934.0,25933.0,2.04928327]
[1693787974255,0.03787603,25934.0,25933.0,2.04886327]
[1693787974467,0.03787603,25934.0,25933.0,2.04874327]
[1693787974672,0.03787603,25934.0,25933.0,2.04868327]
[1693787974890,0.03787603,25934.0,25933.0,2.04856327]
[1693787975050,0.03787603,25934.0,25933.0,2.04844327]
[1693787975266,0.03787603,25934.0,25933.0,2.04886327]
[1693787975475,0.03787603,25934.0,25933.0,1.34874327]
[1693787975673,0.03787603,25934.0,25933.0,1.34868327]
[1693787975923,0.03787603,25934.0,25933.0,1.34856327]
[1693787976102,0.03787603,25934.0,25933.0,1.34850327]
[1693787976408,0.03787603,25934.0,25933.0,1.34838327]
[1693787976571,0.03787603,25934.0,25933.0,1.34820327]
[1693787976769,0.03787603,25934.0,25933.0,1.34808327]
[1693787976985,0.03787603,25934.0,25933.0,1.34796327]
[1693787977182,0.03787603,25934.0,25933.0,1.34778327]
[1693787977385,0.03787603,25934.0,25933.0,1.34772327]
[1693787977664,0.03787603,25934.0,25933.0,1.34904327]
[1693787977870,0.03787603,25934.0,25933.0,1.34874327]
[1693787978083,0.03787603,25934.0,25933.0,1.34868327]
[1693787978275,0.03787603,25934.0,25933.0,1.34856327]
[1693787978455,0.03787603,25934.0,25933.0,1.34808327]
[1693787978657,0.03787603,25934.0,25933.0,1.34802327]
[1693787978853,0.03787603,25934.0,25933.0,1.34766327]
[1693787979059,0.03787603,25934.0,25933.0,1.34778327]
[1693787979312,0.03787603,25934.0,25933.0,1.34772327]
[1693787979467,0.03787603,25934.0,25933.0,1.34766327]
[1693787979687,0.03787603,25934.0,25933.0,1.34748327]
[1693787979899,0.03787603,25934.0,25933.0,1.34742327]
[1693787980094,0.03787603,25934.0,25933.0,1.34736327]
[1693787980343,0.03787603,25934.0,25933.0,1.26422327]
[1693787980540,0.03787603,25934.0,25933.0,1.96410327]
[1693787980701,0.03787603,25934.0,25933.0,1.96404327]
[1693787980903,0.03787603,25934.0,25933.0,1.96392327]
[1693787981107,0.03787603,25934.0,25933.0,1.96428327]
[1693787981310,0.03787603,25934.0,25933.0,1.96422327]
[1693787981506,0.03787603,25934.0,25933.0,1.96362327]
[1693787981794,0.03787603,25934.0,25933.0,1.96248327]
[1693787982000,0.03787603,25934.0,25933.0,1.96242327]
[1693787982250,0.03787603,25934.0,25933.0,1.96230327]
[1693787982561,0.03787603,25934.0,25933.0,1.96248327]
[1693787982758,0.03787603,25934.0,25933.0,1.96296327]
[1693787982934,0.03787603,25934.0,25933.0,1.96338327]
[1693787983144,0.03787603,25934.0,25933.0,1.96398327]
[1693787983343,0.03787603,25934.0,25933.0,1.96458327]
[1693787983542,0.03787603,25934.0,25933.0,1.96428327]
[1693787983743,0.03787603,25934.0,25933.0,1.96416327]
[1693787983902,0.03787603,25934.0,25933.0,1.96398327]
[1693787984102,0.03787603,25934.0,25933.0,1.96380327]
[1693787984376,0.03787603,25934.0,25933.0,1.96368327]
[1693787984833,0.03787603,25934.0,25933.0,1.96392327]
[1693787985042,0.03787603,25934.0,25933.0,1.96350327]
[1693787985219,0.03787603,25934.0,25933.0,1.96344327]
[1693787985438,0.03787603,25934.0,25933.0,1.96332327]
[1693787985671,0.03787603,25934.0,25933.0,1.96338327]
[1693787985901,0.03787603,25934.0,25933.0,1.96332327]
[1693787986059,0.03787603,25934.0,25933.0,1.96326327]
[1693787986257,0.03787603,25934.0,25933.0,1.96308327]
[1693787986615,0.03787603,25934.0,25933.0,1.96374327]
[1693787986823,0.03787603,25934.0,25933.0,1.96236327]
[1693787987050,0.03787603,25934.0,25933.0,2.19274321]
[1693787987270,0.03787603,25934.0,25933.0,2.19352321]
[1693787987470,0.03787603,25934.0,25933.0,2.19370321]
[1693787987820,0.03787603,25934.0,25933.0,2.19376321]
[1693787988027,0.03787603,25934.0,25933.0,2.19382321]
[1693787988214,0.03787603,25934.0,25933.0,2.19388321]
[1693787988389,0.03787603,25934.0,25933.0,2.19172321]
[1693787988543,0.03787603,25934.0,25933.0,2.19070321]
[1693787988745,0.03787603,25934.0,25933.0,1.95960327]
[1693787988946,0.03787603,25934.0,25933.0,1.95942327]
[1693787989143,0.03787603,25934.0,25933.0,1.95948327]
[1693787989367,0.03787603,25934.0,25933.0,1.95942327]
[1693787989565,0.03787603,25934.0,25933.0,1.95966327]
[1693787989770,0.03787603,25934.0,25933.0,2.19070321]
[1693787990043,0.03787603,25934.0,25933.0,2.19136321]
[1693787990360,0.03787603,25934.0,25933.0,2.19094321]
[1693787990605,0.03787603,25934.0,25933.0,2.19106321]
[1693787990743,0.03787603,25934.0,25933.0,2.19100321]
[1693787990952,0.03787603,25934.0,25933.0,2.19058321]
[1693787991145,0.03787603,25934.0,25933.0,2.19094321]
[1693787991348,0.03787603,25934.0,25933.0,2.19208321]
[1693787991592,0.03787603,25934.0,25933.0,2.19250321]
[1693787991772,0.03787603,25934.0,25933.0,2.19640321]
[1693787991971,0.03787603,25934.0,25933.0,2.19562321]
[1693787992181,0.03787603,25934.0,25933.0,2.19568321]
[1693787992387,0.03787603,25934.0,25933.0,2.19574321]
[1693787992562,0.03787603,25934.0,25933.0,2.19526321]
[1693787992743,0.03787603,25934.0,25933.0,2.19424321]
[1693787992972,0.03787603,25934.0,25933.0,2.27726321]
[1693787993182,0.03787603,25934.0,25933.0,2.27816321]
[1693787993409,0.03787603,25934.0,25933.0,2.27906321]
[1693787993613,0.03787603,25934.0,25933.0,2.28296321]
[1693787993822,0.03787603,25934.0,25933.0,2.28512321]
[1693787994030,0.03787603,25934.0,25933.0,2.28446321]
[1693787994232,0.03787603,25934.0,25933.0,2.28470321]
[1693787994452,0.03787603,25934.0,25933.0,2.28548321]
[1693787994639,0.03787603,25934.0,25933.0,2.28494321]
[1693787994841,0.03787603,25936.0,25935.0,0.05692676]
[1693787995045,0.26826433,25937.0,25936.0,0.05692676]
[1693787995358,0.03787603,25937.0,25936.0,1.07324871]
[1693787995588,0.03787603,25937.0,25936.0,1.07396871]
[1693787995796,0.03787603,25937.0,25936.0,1.07330871]
[1693787995947,0.03787603,25937.0,25936.0,1.16607162]
[1693787996152,0.03787603,25937.0,25936.0,1.16583162]
[1693787996349,0.03787603,25937.0,25936.0,1.07252871]
[1693787996552,0.03787603,25937.0,25936.0,1.07234871]
[1693787996733,0.03787603,25937.0,25936.0,1.16425835]
[1693787996930,0.03787603,25937.0,25936.0,1.07018871]
[1693787997140,0.03787603,25937.0,25936.0,1.07096871]
[1693787997330,0.03787603,25937.0,25936.0,1.07012871]
[1693787997537,0.03787603,25937.0,25936.0,1.07060871]
[1693787997753,0.03787603,25937.0,25936.0,1.07150871]
[1693787998000,0.03787603,25937.0,25936.0,1.14684412]
[1693787998202,0.03787603,25937.0,25936.0,1.18322412]
[1693787998385,0.03787603,25937.0,25936.0,1.18370412]
[1693787998587,0.03787603,25937.0,25936.0,1.18352412]
[1693787998914,0.03787603,25937.0,25936.0,0.87128134]
[1693787999049,0.03787603,25937.0,25936.0,1.57128134]
[1693787999254,0.03787603,25937.0,25936.0,1.57056134]
[1693787999465,0.03787603,25937.0,25936.0,1.57104134]
[1693787999668,0.03787603,25937.0,25936.0,1.57086134]
[1693787999875,0.03787603,25937.0,25936.0,1.57068134]
[1693788000096,0.03787603,25937.0,25936.0,1.57026134]
[1693788000300,0.03787603,25937.0,25936.0,1.56720134]
[1693788000521,0.03787603,25937.0,25936.0,1.56588134]
[1693788000730,0.03787603,25937.0,25936.0,1.55994134]
[1693788000947,0.03787603,25937.0,25936.0,1.55976134]
[1693788001147,0.03787603,25937.0,25936.0,0.86054134]
[1693788001348,0.03787603,25937.0,25936.0,0.85940134]
[1693788001551,0.03787603,25937.0,25936.0,0.68252895]
[1693788001767,0.03787603,25937.0,25936.0,0.68140895]
[1693788001964,0.03787603,25937.0,25936.0,0.71834895]
[1693788002127,0.03787603,25937.0,25936.0,0.71828895]
[1693788002326,0.03787603,25937.0,25936.0,0.71816895]
[1693788002526,0.03787603,25937.0,25936.0,0.71804895]
[1693788002727,0.03787603,25937.0,25936.0,0.71792895]
[1693788002922,0.03787603,25937.0,25936.0,0.71786895]
[1693788003325,0.03787603,25937.0,25936.0,0.71732895]
[1693788003526,0.03787603,25937.0,25936.0,0.71718703]
[1693788003703,0.03787603,25937.0,25936.0,0.71754703]
[1693788003883,0.03787603,25937.0,25936.0,0.71778703]
[1693788004085,0.03787603,25937.0,25936.0,0.71760703]
[1693788004289,0.03787603,25937.0,25936.0,0.71766703]
[1693788004490,0.03787603,25937.0,25936.0,0.71742703]
[1693788004695,0.03787603,25937.0,25936.0,0.71736703]
[1693788005011,0.03787603,25937.0,25936.0,0.71772703]
[1693788005220,0.03787603,25937.0,25936.0,0.71784703]
[1693788005372,0.03787603,25937.0,25936.0,0.71778703]
[1693788005637,0.03787603,25937.0,25936.0,0.71880703]
[1693788005826,0.03787603,25937.0,25936.0,0.72072703]
[1693788006018,0.03787603,25937.0,25936.0,0.71730703]
[1693788006195,0.03787603,25937.0,25936.0,0.71646703]
[1693788006400,0.03787603,25937.0,25936.0,0.71634703]
[1693788006578,0.03787603,25937.0,25936.0,0.71490703]
[1693788006962,0.03787603,25937.0,25936.0,0.71370703]
[1693788007163,0.03787603,25937.0,25936.0,0.71406703]
[1693788007370,0.03787603,25937.0,25936.0,0.71424703]
[1693788007550,0.03787603,25937.0,25936.0,0.71370703]
[1693788007722,0.03787603,25937.0,25936.0,0.71400703]
[1693788007922,0.03787603,25937.0,25936.0,0.71370703]
[1693788008143,0.03787603,25937.0,25936.0,0.71310703]
[1693788008344,0.03787603,25937.0,25936.0,0.71370703]
[1693788008545,0.03787603,25937.0,25936.0,0.70870466]
[1693788008750,0.03787603,25937.0,25936.0,0.71778703]
[1693788008946,0.03787603,25937.0,25936.0,0.71814703]
[1693788009288,0.03787603,25937.0,25936.0,0.71766703]
[1693788009568,0.03787603,25937.0,25936.0,0.71802703]
[1693788009783,0.03787603,25937.0,25936.0,0.71694703]
[1693788010007,0.03787603,25937.0,25936.0,0.71706703]
[1693788010207,0.03787603,25937.0,25936.0,0.71724703]
[1693788010361,0.03787603,25937.0,25936.0,0.71134466]
[1693788010566,0.03787603,25937.0,25936.0,0.71068466]
[1693788010771,0.03787603,25937.0,25936.0,0.71110466]
[1693788010973,0.03787603,25937.0,25936.0,0.71098466]
[1693788011350,0.03787603,25937.0,25936.0,0.71080466]